Cogmind - Beta 16.1 @@@ ROGUE MODE // 2026.02.14 @ 20:53:52 Player: Triffids Result: Self-destructed Performance ------------- Evolutions (2) 1000 Regions Visited (6) 1200 Robots Destroyed (30) 150 Value Destroyed (652) 652 Prototype IDs (24) 480 Alien Tech Used (0) 0 Bonus (300) 300 TOTAL SCORE: 3782 Bonus ------- Aligned with FarCom 300 Cogmind --------- Core Integrity 550/550 Matter 280/300 Energy 125/125 System Corruption 0% Temperature Cool (0) Movement Walking (120) Location -8/Materials Parts ------- > --- POWER (1) -------- Light Ion Engine > --- PROPULSION (4) --- Aluminum Leg Aluminum Leg Aluminum Leg Carbon-fiber Leg > --- UTILITY (4) ------ Improved Terrain Scanner Terrain Scan Processor Light Armor Plating Supersonic Drone Bay (0/1) > --- WEAPON (2) ------- Particle Cannon Autogun > --- INVENTORY (5) ---- Light Ion Engine Field Laser Light Assault Rifle Mining Laser Peak State ------------ > --- POWER ------------ Light Ion Engine > --- PROPULSION ------- Aluminum Leg Aluminum Leg Aluminum Leg Carbon-fiber Leg > --- UTILITY ---------- Improved Terrain Scanner Terrain Scan Processor Light Armor Plating Supersonic Drone Bay > --- WEAPON ----------- Particle Cannon Autogun > --- INVENTORY -------- Light Ion Engine Light Assault Rifle Mining Laser [Rating: 25] Favorites ----------- Power Light Nuclear Core Engine Light Ion Engine Power Core Light Nuclear Core Propulsion Aluminum Leg Leg Aluminum Leg Utility Improved Terrain Scanner Device Improved Terrain Scanner Processor Terrain Scan Processor Protection Light Armor Plating Weapon Medium Laser Energy Gun Medium Laser Energy Cannon Particle Cannon Ballistic Gun Autogun Special Weapon Mining Laser Build | -11 -10 -9 -9 -9 -8 -8 ------- Run | Yrd Mat Mat Min Exi Min Mat Slots Evolved 4 | . . 2 . . . 2 Power . | . . . . . . . Propulsion 2 | . . . . . . 2 Utility 2 | . . 2 . . . . Weapon . | . . . . . . . Parts Attached 31 | 8 4 9 6 1 1 2 Power 5 | 1 2 . 1 . 1 . Engine 3 | 1 1 . . . 1 . Core 2 | . 1 . 1 . . . Reactor . | . . . . . . . Propulsion 8 | 2 1 3 . . . 2 Treads . | . . . . . . . Leg 8 | 2 1 3 . . . 2 Wheel . | . . . . . . . Hover . | . . . . . . . Flight . | . . . . . . . Utility 11 | 3 . 4 3 1 . . Device 6 | 3 . 1 1 1 . . Storage . | . . . . . . . Processor 3 | . . 2 1 . . . Hackware . | . . . . . . . Protection 2 | . . 1 1 . . . Artifact . | . . . . . . . Weapon 7 | 2 1 2 2 . . . Energy Gun 4 | 2 . 2 . . . . Energy Cannon 1 | . . . 1 . . . Ballistic Gun 1 | . . . 1 . . . Ballistic Cannon . | . . . . . . . Launcher . | . . . . . . . Special Weapon 1 | . 1 . . . . . Impact Weapon . | . . . . . . . Slashing Weapon . | . . . . . . . Piercing Weapon . | . . . . . . . Special Melee Weapon . | . . . . . . . Unidentified Prototypes 1 | . . 1 . . . . Parts Lost 3 | . 1 1 1 . . . Power 1 | . 1 . . . . . Propulsion 1 | . . 1 . . . . Utility 1 | . . . 1 . . . Weapon . | . . . . . . . Highest Loss Streak 1 | . 1 1 1 . . . To Critical Strikes . | . . . . . . . Average Backups 4 | 2 4 4 5 4 4 3 Power . | . . . 1 1 1 1 Propulsion 1 | . 1 1 2 2 2 . Utility . | . 1 . 1 . . . Weapon 1 | 1 1 1 1 1 1 2 Tool/Special . | . . . . . . . Unused Backups 6 | . 2 1 . . . 3 Power 1 | . . . . . . 1 Propulsion . | . . . . . . . Utility . | . . . . . . . Weapon 5 | . 2 1 . . . 2 Tool/Special . | . . . . . . . Average Slot Usage (%) 99 | . 99 99 98 100 100 98 Engine 3 | . 6 . . . 10 9 Core 7 | . 6 11 11 11 1 . Leg 23 | . 28 22 22 22 22 35 Device 23 | . 28 30 14 22 22 18 Processor 12 | . . 12 23 17 11 9 Protection 4 | . . . 3 4 11 9 Energy Gun 10 | . 27 22 5 . . . Energy Cannon 6 | . . . 8 11 11 9 Ballistic Gun 6 | . . . 7 11 11 9 Peak Build Rating 25 | 9 11 18 18 23 23 25 Average Rating 15 | 5 9 15 15 19 21 24 On Entrance 14 | . 9 11 18 16 23 21 Avg Prop Armor Cover (%) 34 | 34 . . . . . . Naked Turns . | . . . . . . . Heaviest Build 17 | 9 11 16 14 17 17 15 Greatest Support 45 | 20 20 20 20 20 20 45 Greatest Overweight (x) . | . . . . . . . Average Overweight (x) . | . . . . . . . Largest Inventory Capacity 5 | 5 5 5 5 5 5 5 Average Capacity 5 | 5 5 5 5 5 5 5 Most Carried 5 | 5 5 5 5 5 5 4 Average Carried 4 | 2 4 4 4 4 4 3 Final Capacity 5 | 5 5 5 5 5 5 5 Final Carried 5 | 3 5 5 5 4 5 4 Class Distribution -------------------- 55% | Scavenger-Skirmisher 24% | Mutant 20% | Scavenger-Mutant Dominant Class ---------------- Scavenger-Mutant | -10/Materials Scavenger-Skirmisher | -9/Materials Mutant | -9/Mines Scavenger-Skirmisher | -9/Exiles Scavenger-Skirmisher | -8/Mines Scavenger-Skirmisher | -8/Materials Resources | -11 -10 -9 -9 -9 -8 -8 ----------- Run | Yrd Mat Mat Min Exi Min Mat Matter Collected 591 | 280 30 105 105 . 71 . Remotely . | . . . . . . . Salvage Created 1038 | 162 334 390 94 . 58 . Parts 82 | 13 25 23 13 . 8 . Haulers Intercepted . | . . . . . . . Recyclers Shooed 5 | 1 2 1 1 . . . Parts Field Recycled . | . . . . . . . Retrieved Matter . | . . . . . . . Parts Self-Destructed . | . . . . . . . Prevented . | . . . . . . . Parts Restored . | . . . . . . . Kills | -11 -10 -9 -9 -9 -8 -8 ------- Run | Yrd Mat Mat Min Exi Min Mat Combat Hostiles Destroyed 19 | . 6 6 3 . 4 . Guns 16 | . 6 6 2 . 2 . Cannons 3 | . . . 1 . 2 . Classes Destroyed 8 | 2 3 2 1 . . . Builder 2 | . 1 . 1 . . . Tunneler 6 | 4 1 . 1 . . . Recycler 2 | 1 . 1 . . . . Watcher 1 | . 1 . . . . . Swarmer 7 | . . . 3 . 4 . Grunt 9 | . 6 3 . . . . Duelist 1 | . . 1 . . . . Sentry 2 | . . 2 . . . . Best Kill Streak 6 | 3 6 3 3 . 4 . Combat Bots Only 4 | . 3 3 3 . 4 . Max Kills in Single Turn 1 | 1 1 1 1 . 1 . Gunslinging . | . . . . . . . Exploded . | . . . . . . . Melee . | . . . . . . . Uniques/NPCs Destroyed . | . . . . . . . Combat | -11 -10 -9 -9 -9 -8 -8 -------- Run | Yrd Mat Mat Min Exi Min Mat Hostile Shots Fired 103 | . 31 32 18 . 22 . Missed 27 | . 6 11 5 . 5 . Hits 76 | . 25 21 13 . 17 . Melee 3 | . . 3 . . . . Projectile 73 | . 25 18 13 . 17 . Critical Strikes 3 | . . 1 . . 2 . Damage Taken 973 | . 322 335 171 . 145 . Core 207 | . 90 102 15 . . . Absorbed by Shields . | . . . . . . . Redirected to Shielding 9 | . . . 9 . . . Core Remaining (%) 78 | 100 64 . . . 70 . Volleys Fired 93 | 10 42 22 13 . 6 . Largest 2 | 2 2 2 2 . 2 . Hottest 100 | 100 100 100 91 . 91 . Shots Fired 176 | 20 77 43 24 . 12 . Gun 157 | 20 75 43 13 . 6 . Cannon 17 | . . . 11 . 6 . Launcher . | . . . . . . . Special 2 | . 2 . . . . . Kinetic 19 | . . . 13 . 6 . Thermal 124 | 20 77 10 11 . 6 . Explosive . | . . . . . . . Electromagnetic 33 | . . 33 . . . . Robot Hit Streak 8 | 6 8 7 2 . 4 . Robot Miss Streak 5 | 2 5 2 5 . 3 . Penetration Max . | . . . . . . . Secondary Targets . | . . . . . . . Shots Hit Robots 104 | 12 44 35 8 . 5 . Core Hits 50 | 6 19 16 5 . 4 . Critical Kills . | . . . . . . . Critical Parts Destroyed . | . . . . . . . Critical Strikes 7 | 2 5 . . . . . Burn 7 | 2 5 . . . . . Melee Attacks . | . . . . . . . Impact . | . . . . . . . Slashing . | . . . . . . . Piercing . | . . . . . . . Sneak Attacks . | . . . . . . . Combat Hostiles . | . . . . . . . Follow-up Attacks . | . . . . . . . Damage Inflicted 1650 | 154 668 589 145 . 94 . Guns 1453 | 154 668 515 84 . 32 . Cannons 123 | . . . 61 . 62 . Explosions 74 | . . 74 . . . . Melee . | . . . . . . . Ramming . | . . . . . . . Kinetic 116 | . . . 84 . 32 . Thermal 1109 | 154 668 164 61 . 62 . Explosive . | . . . . . . . Electromagnetic 425 | . . 425 . . . . Impact . | . . . . . . . Slashing . | . . . . . . . Piercing . | . . . . . . . Highest Corruption . | . . . . . . . Average Corruption . | . . . . . . . Corruption Purged . | . . . . . . . Corruption Blocked . | . . . . . . . Overload Shots . | . . . . . . . Overflow Damage 18 | . . 18 . . . . Projectiles . | . . . . . . . Explosions 18 | . . 18 . . . . Melee . | . . . . . . . Knockbacks . | . . . . . . . Impact . | . . . . . . . Kinetic . | . . . . . . . Secondary . | . . . . . . . Self-Inflicted Damage . | . . . . . . . Shots . | . . . . . . . Rammed . | . . . . . . . Targets Rammed . | . . . . . . . Kicked . | . . . . . . . Crushed . | . . . . . . . Highest Temperature 349 | 156 349 311 177 . 252 . Average Temperature 119 | 55 136 144 61 . 116 . Received Heat Transfer 351 | . 180 108 . . 63 . Siege Activations . | . . . . . . . Martial Activations . | . . . . . . . Shielding Activations . | . . . . . . . Robots Disrupted . | . . . . . . . Combat Hostiles . | . . . . . . . Robots Corrupted . | . . . . . . . Combat Hostiles . | . . . . . . . Parts Fried 2 | . . 2 . . . . Impact Corruptions . | . . . . . . . Robots Melted . | . . . . . . . Combat Hostiles . | . . . . . . . Parts Melted 5 | 1 3 1 . . . . Heat Transferred 3504 | 592 2331 359 111 . 111 . Parts Sabotaged . | . . . . . . . Parts Stolen . | . . . . . . . Parts Stripped . | . . . . . . . Power Chain Reactions 2 | . . 2 . . . . Alert | -11 -10 -9 -9 -9 -8 -8 ------- Run | Yrd Mat Mat Min Exi Min Mat Maximum Alert Level . | . . . . . . . Low Security (%) 100 | 100 100 100 100 . 100 100 Level 1 . | . . . . . . . Level 2 . | . . . . . . . Level 3 . | . . . . . . . Level 4 . | . . . . . . . Level 5 . | . . . . . . . High Security . | . . . . . . . Max Security . | . . . . . . . Peak Influence 144 | 10 63 144 60 . 90 5 Initial 42 | . . . 42 . . . Average 25 | 1 28 47 17 . 25 . Influence Increases 599 | 25 170 229 80 . 90 5 Destroy 0b10 Robot/C 380 | . 120 120 60 . 80 . Destroy 0b10 Robot/NC 55 | 25 15 5 10 . . . Destroy Leader 92 | . 32 40 10 . 10 . Successful Hack 5 | . . . . . . 5 Disable Machine 30 | . . 30 . . . . Destroy Structure 7 | . 3 4 . . . . Lose Combat Pursuer 30 | . . 30 . . . . Influence Decreases 599 | 25 168 122 189 . 90 5 Entered New Map 69 | . . 2 67 . . . Time Decay 500 | 25 158 110 112 . 90 5 Lost Part 30 | . 10 10 10 . . . Squads Dispatched 3 | . 1 1 . . . 1 Investigation . | . . . . . . . Extermination . | . . . . . . . Reinforcement 3 | . 1 1 . . . 1 Assault . | . . . . . . . Garrison . | . . . . . . . Intercept . | . . . . . . . Searches Triggered . | . . . . . . . Construction Impeded . | . . . . . . . Haulers Reinforced . | . . . . . . . Active Scanning Responses . | . . . . . . . Cargo Convoy Interrupts . | . . . . . . . Stealth | -11 -10 -9 -9 -9 -8 -8 --------- Run | Yrd Mat Mat Min Exi Min Mat Distress Signals . | . . . . . . . Communications Jammed . | . . . . . . . Distress Signals . | . . . . . . . Times Spotted 27 | . 8 9 3 . 7 . Peak Tracking Total 4 | . 3 4 3 . 4 . Tactical Retreats 1 | . . 1 . . . . Traps | -11 -10 -9 -9 -9 -8 -8 ------- Run | Yrd Mat Mat Min Exi Min Mat Traps Triggered 1 | . . . 1 . . . Indirectly . | . . . . . . . Trap Hack Attempts . | . . . . . . . Triggered . | . . . . . . . Disarmed . | . . . . . . . Reprogrammed . | . . . . . . . Reused . | . . . . . . . Traps Extracted . | . . . . . . . Installed . | . . . . . . . Triggered . | . . . . . . . Machines | -11 -10 -9 -9 -9 -8 -8 ---------- Run | Yrd Mat Mat Min Exi Min Mat Machines Disabled 2 | . . 2 . . . . Max in Single Turn 1 | . . 1 . . . . Machines Repaired . | . . . . . . . Machines Dismantled . | . . . . . . . Machines Sabotaged . | . . . . . . . Overloaded Fab Kills . | . . . . . . . Hacking | -11 -10 -9 -9 -9 -8 -8 --------- Run | Yrd Mat Mat Min Exi Min Mat Machines Accessed 6 | . 1 1 1 2 . 1 Terminals 3 | . 1 1 . . . 1 Fabricators . | . . . . . . . Repair Stations . | . . . . . . . Recycling Units . | . . . . . . . Scanalyzers . | . . . . . . . Garrison Access . | . . . . . . . Total Hacks 35 | . 3 3 1 24 . 4 Successful 29 | . . 2 1 24 . 2 Failed 6 | . 3 1 . . . 2 Catastrophic . | . . . . . . . Database Lockouts . | . . . . . . . Manual 4 | . 1 1 . 1 . 1 Terminals 10 | . 3 3 . . . 4 Fabricators . | . . . . . . . Repair Stations . | . . . . . . . Recycling Units . | . . . . . . . Scanalyzers . | . . . . . . . Garrison Access . | . . . . . . . Terminal Hacks 27 | . . 1 1 24 . 1 Record 23 | . . . . 23 . . Open Door 1 | . . . 1 . . . Locate Traps 1 | . . . . . . 1 Zone Layout 1 | . . 1 . . . . Proto ID Catalog 1 | . . . . 1 . . Fabricator Hacks . | . . . . . . . Repair Station Hacks . | . . . . . . . Recycling Unit Hacks . | . . . . . . . Scanalyzer . | . . . . . . . Garrison Access Hacks . | . . . . . . . Unauthorized Hacks 2 | . . 1 . . . 1 Terminals 2 | . . 1 . . . 1 Botnet 2 | . . 1 . . . 1 Fabricators . | . . . . . . . Repair Stations . | . . . . . . . Recycling Units . | . . . . . . . Scanalyzers . | . . . . . . . Garrison Access . | . . . . . . . Data Cores Recovered . | . . . . . . . Used . | . . . . . . . Hacking Detections 3 | . 1 1 . . . 1 Full Trace Events . | . . . . . . . Feedback Events . | . . . . . . . Feedback Blocked . | . . . . . . . Robot Schematics Acquired . | . . . . . . . Robots Built . | . . . . . . . Authchips . | . . . . . . . Time . | . . . . . . . Total Robot Build Rating . | . . . . . . . Part Schematics Acquired . | . . . . . . . Parts Built . | . . . . . . . Authchips . | . . . . . . . Time . | . . . . . . . Total Part Build Rating . | . . . . . . . Part Studies Acquired . | . . . . . . . Parts Repaired . | . . . . . . . Time . | . . . . . . . Parts Recycled . | . . . . . . . Recycled Matter . | . . . . . . . Retrieved Matter . | . . . . . . . Retrieved Components . | . . . . . . . Parts Scanalyzed . | . . . . . . . Part Schematics Acquired . | . . . . . . . Parts Damaged . | . . . . . . . Bothacking | -11 -10 -9 -9 -9 -8 -8 ------------ Run | Yrd Mat Mat Min Exi Min Mat Used RIF Installer . | . . . . . . . Robots Hacked . | . . . . . . . Non-combat . | . . . . . . . Combat . | . . . . . . . Robot Hacks Applied . | . . . . . . . Relay Couplers Released . | . . . . . . . Fabnet Peak Effective % . | . . . . . . . Robots Rewired . | . . . . . . . Allies Hacked . | . . . . . . . Hacks Repelled . | . . . . . . . Allies | -11 -10 -9 -9 -9 -8 -8 -------- Run | Yrd Mat Mat Min Exi Min Mat Total Allies . | . . . . . . . Largest Group . | . . . . . . . Highest-Rated Group . | . . . . . . . Highest-Rated Ally . | . . . . . . . Total Orders 3 | . . . . . 2 1 EXPLORE 2 | . . . . . 1 1 RETURN 1 | . . . . . 1 . Ally Attacks . | . . . . . . . Total Damage . | . . . . . . . Kills . | . . . . . . . Allies Corrupted . | . . . . . . . Allies Melted . | . . . . . . . Intel | -11 -10 -9 -9 -9 -8 -8 ------- Run | Yrd Mat Mat Min Exi Min Mat Active Infowar (turns) 1878 | 41 362 322 383 364 320 86 Sensors 907 | . . 320 383 204 . . Terrain 1622 | 38 362 322 130 364 320 86 Seismic 635 | 25 362 248 . . . . Robot Analysis Total . | . . . . . . . Derelict Logs Recovered 1 | . . . 1 . . . Drone Launches 2 | . . . . . 1 1 Drone Recoveries 1 | . . . . . 1 . Exploration | -11 -10 -9 -9 -9 -8 -8 ------------- Run | Yrd Mat Mat Min Exi Min Mat Turns Passed 1975 | 110 362 350 383 364 320 86 Spaces Moved 1251 | 63 164 180 271 301 206 66 Core 17 | 17 . . . . . . Treads . | . . . . . . . Legs 1234 | 46 164 180 271 301 206 66 Wheels . | . . . . . . . Hover . | . . . . . . . Flight . | . . . . . . . Fastest Speed 50 | 50 120 120 120 120 120 120 Average Speed 119 | 101 120 120 120 120 120 120 Slowest Speed 120 | 120 120 120 120 120 120 120 Overloaded Moves . | . . . . . . . Propulsion Burnouts . | . . . . . . . Robots Hopped . | . . . . . . . Potential Cave-ins . | . . . . . . . Cave-ins Triggered . | . . . . . . . Exploration Rate (%) 42 | 4 33 20 62 70 78 27 Regions Visited 6 Branch Regions 3 Pre-discovered Areas 1 | . . . . 1 . . Known Exits Taken 4 | . . 1 1 1 1 . Unknown Exits Taken 2 | 1 1 . . . . . Scrap Searched 4 | . . . 1 . 3 . Spaces Dug 2 | . 2 . . . . . Terrain Destroyed 7 | . 2 3 2 . . . Melee . | . . . . . . . Projectile 4 | . 2 . 2 . . . AOE 3 | . . 3 . . . . Terrain Rammed . | . . . . . . . Walls Destroyed . | . . . . . . . Machines Disabled . | . . . . . . . Actions | -11 -10 -9 -9 -9 -8 -8 --------- Run | Yrd Mat Mat Min Exi Min Mat Total 1560 | 87 252 271 307 304 267 72 Wait 149 | . 29 53 10 . 54 3 Move 1245 | 62 163 179 270 300 205 66 Hop . | . . . . . . . Pick Up 20 | 6 7 3 2 . 1 1 Fast Attach 11 | 4 . 2 4 1 . . Attach 10 | 3 1 3 . 1 . 2 Detach 3 | . . 1 1 1 . . Swap 13 | 1 4 4 3 . 1 . Drop 16 | 1 6 4 4 1 . . Fire 93 | 10 42 22 13 . 6 . Melee . | . . . . . . . Ram . | . . . . . . . Kick . | . . . . . . . Crush . | . . . . . . . Escape Stasis . | . . . . . . . Rewire . | . . . . . . . Trap . | . . . . . . . Miscellaneous . | . . . . . . . Route ------- -11/Scrapyard -10/Materials -9/Materials -9/Mines (discovered 2 exits: *Mat / *Exi) -9/Exiles (discovered 2 exits: *Min x2) -8/Mines -8/Materials History --------- Turn | Location | Event 12 | -11/Scrapyard | Discovered new exit (range 15) 111 | -11/Scrapyard | Entered Materials 452 | -10/Materials | Discovered new exit (range 13) 473 | -10/Materials | Entered another Materials area 473 | -9/Materials | Evolved 2 slots: Utility x2 780 | -9/Materials | Discovered new exit (range 16) 789 | -9/Materials | Build established: Scavenger-Skirmisher 820 | -9/Materials | Identified exit to Mines 823 | -9/Materials | Entered Mines 887 | -9/Mines | Met a Derelict who couldn't figure out how to use a Trap Extractor 912 | -9/Mines | Found DCF Scrap (11 items) 1068 | -9/Mines | Discovered new exit (range 12) 1091 | -9/Mines | Identified exit to Materials 1152 | -9/Mines | Learned Materials garrison access intel 1198 | -9/Mines | Deemed a non-threat by the Exiles lab entrance 1199 | -9/Mines | Discovered new exit (range 5) 1203 | -9/Mines | Identified exit to Exiles 1206 | -9/Mines | Entered Exiles 1227 | -9/Exiles | Discovered new exit (range 14) 1241 | -9/Exiles | Identified exit to Mines 1265 | -9/Exiles | Met 8R-AWN 1288 | -9/Exiles | Met EX-HEX 1326 | -9/Exiles | Met EX-BIN 1343 | -9/Exiles | Aligned with FarCom system 1344 | -9/Exiles | Given EX-Vault access code 1402 | -9/Exiles | Opened EX-Vault 1411 | -9/Exiles | Found Supersonic Drone Bay 1438 | -9/Exiles | Warned to stay clear of 0b10 Research branches 1474 | -9/Exiles | Met EX-DEC 1514 | -9/Exiles | Learned location of Zion (-6) 1559 | -9/Exiles | Discovered exit to Mines (range 11) 1570 | -9/Exiles | Left Exiles lab with Supersonic Drone Bay 1570 | -9/Exiles | Entered Mines 1605 | -8/Mines | Discovered exit to Materials (range 54) 1890 | -8/Mines | Entered Materials 1890 | -8/Materials | Evolved 2 slots: Propulsion x2 1891 | -8/Materials | Loaded intel: 1 garrison access location 1976 | -8/Materials | Self-destructed Last Messages --------------- 01896_ O-16 Technician: "IFF HANDSHAKE FAILED. SECURING TERMINAL." 01898_ K-01 Serf collects debris. 01898_ ALERT: Hostiles spotted, dispatching reinforcements to Terminal M012. 01899_ Trailblazer destroyed. 01917_ Acquired Field Laser. 01939_ K-01 Serf cleans the Matter Pump. 01943_ K-01 Serf collects debris. 01960_ Connecting with Terminal... >>Traps(Locate) Found 6 traps in 1 array: 6x Alarm Trap Map updated. >>Trojan(Botnet) Trojan loaded successfully. Testing... Terminal linked with 0 systems. Awaiting botnet instructions. 01964_ K-01 Serf collects debris. Map ----- +----------------------------------------------------+ | ???????????????????????????????????????# # | | ???????????????????????????????????????# # | | ???????????????????????????????????????# # | | ???????????????????????????????????????? ? | | ?????????????????????????????????????????? ??? | | ??????????????????????######################/##### | | ?????????????????????? % # | | ?????????????????????? # | | ??????????????????????? # | | ????????????????????????## w ############# / | | ?????????????????????????# #?##Y######## # | | ?????????????????????????# #?# # # | | ?????????????????????????# #?# T # #### | | ?????????????????????????# ### """ # #### | | ??????????????? ???Y?????# + ! """ # + | | ?????????????????? ? ????# g ### """ # #### | | ????????????????? ?? ????# #?# g + #??# | | ??????????????? ????#?#??# #?# = gg # #??# | | ????????????????########## ### # #??# | | ????????????????# ! # #######/##### #### | | ????????????????# # | | ???????????#????#! ""T"" + ^ ^ | | ????????????????# """"" # """ ^""" | | ????????????????##########+## """ """" | | ??????????????????# = ! # ^ """ """" | | ??????????????? #?# @ #"" ^ ^"""" | | ??????????????????# #"T """ | | ?????????????#???## """ """ #"" | | ?????????????????## """ """ + | | ????????????????### """ """ # | | ??????????????????# """ """ ###########+########T# | | ??????????????????# #???# """"" """"" #### | | ?????????????#????###########?#?# """"" """"" #?#? | | ????????????????????#???????###?# """"" """"" #### | | ??????????????????????#????????## #### | | ????????????????#?????????#?????# = [ ###? | | ????????????????????????#???????# #### | | ????????????????????????##??#?#?###############?#? | | | | | | | | | | | | | | | | | | | | | | | | | +----------------------------------------------------+ Best States ------------- Heat Dissipation 31 Energy Generation 14 Energy Capacity 160 Matter Stores 300 Matter Capacity 300 Sight Range 16 Robot Scan Range 14 Terrain Scan Range 16 Terrain Scan Density 160 Armor Coverage 150 Weapon Shielding 33 Evasion (%) 55 Item Schematics ----------------- None Robot Schematics ------------------ None Fabricated ------------ Nothing Repaired ---------- Nothing Studied --------- None Alien Tech Used ----------------- None Achievements -------------- Sixth Sense Challenges ------------ None Game ------ Seed DerelictPhasingScrap Manual? 0 Play Time 00:27:37 Cumulative 278.6 hours Start 2026.02.13 @ 19:00:35 End 2026.02.14 @ 20:53:52 Sessions 3 Manual Loads 0 Difficulty Rogue Special Mode None Game No. 525 Rogue 525 Adventurer 0 Explorer 0 Win Type - Total 1 Types 1/0/0/0/0/0/0/0/0/0 Lore% 37 Gallery% 47 Achievement% 31 Wizard Run 0 Options --------- Layout 1 ASCII 0 Keyboard 1 Movement Vi Keybinds 0 Fullscreen 0 Font 20/Smallcaps Map View 59x39 Zoom Use 0% Tactical HUD 1 Map Filters NONE Filters NONE Steam 1 RUN: 73dee4a0-0efe-451d-ac90-5026a2440b30